fUST/lending_fUST_20260117
["ID","MTS","AMOUNT","RATE_DAILY","PERIOD"]
[402332925,1768659097970,-500.0,0.00018082,3]
[402332926,1768659097980,-500.0,0.00018082,3]
[402332927,1768659097990,-561.86,0.00018082,3]
[402332928,1768659098000,-962.54,0.00018082,3]
[402332929,1768659098010,-500.0,0.00018082,3]
[402332930,1768659098019,-1710.54,0.00018082,3]
[402332931,1768659098029,-1032.59,0.00018082,3]
[402332932,1768659098038,-1392.68,0.00018082,3]
[402332933,1768659098048,-500.0,0.00018082,3]
[402332934,1768659098058,-1703.95,0.00018082,3]
[402332935,1768659098068,-500.0,0.00018082,3]
[402332936,1768659098077,-500.0,0.00018082,3]
[402332937,1768659098087,-500.0,0.00018082,3]
[402332938,1768659098097,-541.3847786,0.00018082,3]
[402332939,1768659098107,-627.21,0.00018082,3]
[402332940,1768659098116,-500.0,0.00018082,3]
[402332941,1768659098126,-575.03,0.00018082,3]
[402332942,1768659098136,-1013.83,0.00018082,3]
[402332943,1768659098147,-1127.64,0.00018082,3]
[402332944,1768659098157,-1930.5,0.00018082,3]
[402332945,1768659098167,-2381.04,0.00018082,3]
[402332946,1768659098177,-500.0,0.00018082,3]
[402332947,1768659098187,-500.0,0.00018082,3]
[402332948,1768659098197,-500.0,0.00018082,3]
[402332949,1768659098209,-1952.14,0.00018082,3]
[402332950,1768659098218,-1217.45,0.00018082,3]
[402332951,1768659098228,-406.36386394,0.00018082,3]
[402332952,1768659098238,-500.0,0.00018082,3]
[402332953,1768659098249,-500.0,0.00018082,3]
[402332954,1768659098259,-1199.47,0.00018082,3]
[402332955,1768659098269,-500.0,0.00018082,3]
[402332956,1768659098279,-500.0,0.00018082,3]
[402332957,1768659098289,-876.92,0.00018082,3]
[402332958,1768659098299,-532.65564852,0.00018082,2]
[402332959,1768659098308,-500.0,0.00018082,3]
[402332960,1768659098317,-574.1,0.00018082,3]
[402332961,1768659098327,-502.95,0.00018082,3]
[402332962,1768659098336,-500.0,0.00018082,3]
[402332963,1768659098346,-500.0,0.00018082,3]
[402332964,1768659098356,-500.0,0.00018082,3]
[402332965,1768659098366,-500.0,0.00018082,3]
[402332966,1768659098375,-500.0,0.00018082,3]
[402332967,1768659098385,-500.0,0.00018082,3]
[402332968,1768659098394,-500.0,0.00018082,3]
[402332969,1768659098403,-538.51,0.00018082,3]
[402332970,1768659098413,-1407.02,0.00018082,3]
[402332971,1768659098422,-500.0,0.00018082,3]
[402332972,1768659098431,-500.0,0.00018082,3]
[402332973,1768659098441,-500.0,0.00018082,3]
[402332974,1768659098450,-500.0,0.00018082,3]
[402332975,1768659098459,-500.0,0.00018082,3]
[402332976,1768659098469,-1435.89,0.00018082,3]
[402332977,1768659098479,-500.0,0.00018082,3]
[402332978,1768659098488,-500.0,0.00018082,3]
[402332979,1768659098498,-500.0,0.00018082,3]
[402332980,1768659098508,-768.41,0.00018082,3]
[402332981,1768659098517,-500.0,0.00018082,3]
[402332982,1768659098527,-500.0,0.00018082,3]
[402332983,1768659098537,-500.0,0.00018082,3]
[402332984,1768659098546,-500.0,0.00018082,3]
[402332985,1768659098555,-500.0,0.00018082,3]
[402332986,1768659098565,-596.93,0.00018082,3]
[402332987,1768659098575,-500.0,0.00018082,3]
[402332988,1768659098585,-500.0,0.00018082,3]
[402332989,1768659098595,-500.0,0.00018082,3]
[402332990,1768659098604,-743.89,0.00018082,3]
[402332991,1768659098614,-500.0,0.00018082,3]
[402332992,1768659098623,-1553.75,0.00018082,3]
[402332993,1768659098633,-500.0,0.00018082,3]
[402332994,1768659098642,-234.44653758,0.00018082,3]
[402332995,1768659098652,-500.0,0.00018082,3]
[402332996,1768659098662,-1798.52,0.00018082,3]
[402332997,1768659098671,-2617.38,0.00018082,3]
[402332998,1768659098681,-1531.88,0.00018082,3]
[402332999,1768659098691,-500.0,0.00018082,3]
[402333000,1768659098700,-807.81,0.00018082,3]
[402333001,1768659098708,-1265.74,0.00018082,3]
[402333002,1768659098716,-859.86,0.00018082,3]
[402333003,1768659098725,-500.0,0.00018082,3]
[402333004,1768659098735,-500.0,0.00018082,3]
[402333005,1768659098744,-500.0,0.00018082,3]
[402333006,1768659098754,-2068.32,0.00018082,3]
[402333007,1768659098763,-500.0,0.00018082,3]
[402333008,1768659098773,-826.35,0.00018082,3]
[402333009,1768659098782,-878.9,0.00018082,3]
[402333010,1768659098792,-243.05,0.00018082,3]
[402333011,1768659098802,-500.0,0.00018082,3]
[402333012,1768659098813,-500.0,0.00018082,3]
[402333013,1768659098823,-753.78,0.00018082,3]
[402333014,1768659098832,-665.06,0.00018082,3]
[402333015,1768659098842,-1665.15,0.00018082,3]
[402333016,1768659098926,-500.0,0.00018082,3]
[402333017,1768659098938,-500.0,0.00018082,3]
[402333018,1768659098949,-598.07,0.00018082,3]
[402333019,1768659098960,-749.97,0.00018082,3]
[402333020,1768659098971,-624.25,0.00018082,3]
[402333021,1768659098981,-642.78,0.00018082,3]
[402333022,1768659098991,-500.0,0.00018082,3]
[402333023,1768659099000,-500.0,0.00018082,3]
[402333024,1768659099010,-500.0,0.00018082,3]
[402333025,1768659099020,-500.0,0.00018082,3]
[402333026,1768659099029,-761.09,0.00018082,3]
[402333027,1768659099039,-1622.42,0.00018082,3]
[402333028,1768659099048,-470.6383794,0.00018082,3]
[402333029,1768659099058,-496.95581154,0.00018082,3]
[402333030,1768659099068,-1425.42,0.00018082,3]
[402333031,1768659099078,-1097.29,0.00018082,3]
[402333032,1768659099088,-500.0,0.00018082,3]
[402333033,1768659099097,-1547.34,0.00018082,3]
[402333034,1768659099107,-500.0,0.00018082,3]
[402333035,1768659099116,-500.0,0.00018082,3]
[402333036,1768659099125,-500.0,0.00018082,3]
[402333037,1768659099135,-2020.66,0.00018082,3]
[402333038,1768659099145,-1837.73,0.00018082,3]
[402333039,1768659099154,-500.0,0.00018082,3]
[402333040,1768659099164,-14920.45,0.00018082,3]
[402333041,1768659099173,-520.01,0.00018082,3]
[402333042,1768659099183,-705.67,0.00018082,3]
[402333043,1768659099193,-500.0,0.00018082,3]
[402333044,1768659099202,-1401.0,0.00018082,3]
[402333045,1768659099212,-1215.91,0.00018082,3]
[402333046,1768659099222,-844.98,0.00018082,3]
[402333047,1768659099231,-1652.42,0.00018082,3]
[402333048,1768659099242,-500.0,0.00018082,3]
[402333050,1768659099251,-500.0,0.00018082,3]
[402333051,1768659099261,-1253.25,0.00018082,3]
[402333052,1768659099270,-500.0,0.00018082,3]
[402333053,1768659099279,-3641.66,0.00018082,3]
[402333054,1768659099288,-1451.63,0.00018082,3]
[402333055,1768659099298,-500.0,0.00018082,3]
[402333056,1768659099307,-1509.95,0.00018082,3]
[402333057,1768659099318,-500.0,0.00018082,3]
[402333058,1768659099327,-760.68,0.00018082,3]
[402333059,1768659099337,-957.46,0.00018082,3]
[402333060,1768659099346,-1880.31,0.00018082,3]
[402333061,1768659099356,-757.84,0.00018082,3]
[402333062,1768659099365,-500.0,0.00018082,3]
[402333063,1768659099375,-707.11,0.00018082,3]
[402333064,1768659099385,-500.0,0.00018082,3]
[402333065,1768659099394,-500.0,0.00018082,3]
[402333066,1768659099403,-500.0,0.00018082,3]
[402333067,1768659099413,-700.32,0.00018082,3]
[402333068,1768659099422,-500.0,0.00018082,3]
[402333069,1768659099431,-408.02411447,0.00018082,3]
[402333070,1768659099441,-500.0,0.00018082,3]
[402333071,1768659099451,-698.65,0.00018082,3]
[402333072,1768659099462,-2050.27,0.00018082,3]
[402333073,1768659099472,-500.0,0.00018082,3]
[402333074,1768659099480,-500.0,0.00018082,3]
[402333075,1768659099489,-542.85,0.00018082,3]
[402333076,1768659099498,-1102.58,0.00018082,3]
[402333077,1768659099508,-500.0,0.00018082,3]
[402333078,1768659099518,-1467.06,0.00018082,3]
[402333079,1768659099528,-500.0,0.00018082,3]
[402333080,1768659099537,-1412.19,0.00018082,3]
[402333081,1768659099547,-699.55,0.00018082,3]
[402333082,1768659099557,-500.0,0.00018082,3]
[402333083,1768659099567,-500.0,0.00018082,3]
[402333084,1768659099577,-500.0,0.00018082,3]
[402333085,1768659099586,-500.0,0.00018082,3]
[402333086,1768659099596,-500.0,0.00018082,3]
[402333087,1768659099605,-500.0,0.00018082,3]
[402333088,1768659099616,-500.0,0.00018082,3]
[402333089,1768659099625,-1428.69,0.00018082,3]
[402333090,1768659099636,-722.95,0.00018082,3]
[402333091,1768659099646,-500.0,0.00018082,3]
[402333092,1768659099655,-1662.79,0.00018082,3]
[402333093,1768659099665,-500.0,0.00018082,3]
[402333094,1768659099674,-500.0,0.00018082,3]
[402333095,1768659099684,-1044.14,0.00018082,3]
[402333096,1768659099694,-607.6,0.00018082,3]
[402333097,1768659099703,-1456.0,0.00018082,3]
[402333098,1768659099712,-913.11,0.00018082,3]
[402333099,1768659099722,-568.79,0.00018082,3]
[402333100,1768659099732,-561.39,0.00018082,3]
[402333101,1768659099742,-531.99,0.00018082,3]
[402333102,1768659099751,-500.0,0.00018082,3]
[402333103,1768659099761,-500.0,0.00018082,3]
[402333104,1768659099771,-500.0,0.00018082,3]
[402333105,1768659099780,-500.0,0.00018082,3]
[402333106,1768659099790,-1211.48,0.00018082,3]
[402333107,1768659099799,-1177.76,0.00018082,3]
[402333108,1768659099809,-500.0,0.00018082,3]
[402333109,1768659099819,-939.73,0.00018082,3]
[402333110,1768659099828,-670.95,0.00018082,3]
[402333111,1768659099838,-1326.69,0.00018082,3]
[402333112,1768659099848,-1081.34,0.00018082,3]
[402333113,1768659099858,-500.0,0.00018082,3]
[402333114,1768659099871,-512.41,0.00018082,3]
[402333115,1768659099880,-1622.28,0.00018082,3]
[402333116,1768659099890,-567.25,0.00018082,3]
[402333117,1768659099900,-1106.71,0.00018082,3]
[402333118,1768659099911,-437.89239693,0.00018082,3]
[402333119,1768659099920,-500.0,0.00018082,3]
[402333120,1768659099930,-500.0,0.00018082,3]
[402333121,1768659099941,-1431.76,0.00018082,3]
[402333122,1768659099951,-597.09,0.00018082,3]
[402333123,1768659099960,-500.0,0.00018082,3]
[402333124,1768659099971,-500.0,0.00018082,3]
[402333125,1768659099982,-500.0,0.00018082,3]
[402333126,1768659099991,-501.51,0.00018082,3]
[402333127,1768659100001,-610.02,0.00018082,3]
[402333128,1768659100011,-500.0,0.00018082,3]
[402333129,1768659100021,-1010.29,0.00018082,3]
[402333130,1768659100031,-500.0,0.00018082,3]
[402333131,1768659100044,-609.3,0.00018082,3]
[402333132,1768659100054,-2815.19,0.00018082,3]
[402333133,1768659100064,-647.23,0.00018082,3]
[402333134,1768659100074,-500.0,0.00018082,3]
[402333135,1768659100084,-500.0,0.00018082,3]
[402333136,1768659100094,-2008.11,0.00018082,3]
[402333137,1768659100104,-992.91,0.00018082,3]
[402333138,1768659100113,-500.0,0.00018082,3]
[402333139,1768659100123,-500.0,0.00018082,3]
[402333140,1768659100133,-759.0,0.00018082,3]
[402333141,1768659100143,-557.01,0.00018082,3]
[402333142,1768659100152,-793.38,0.00018082,3]
[402333143,1768659100162,-561.04,0.00018082,3]
[402333144,1768659100172,-500.0,0.00018082,3]
[402333145,1768659100182,-500.0,0.00018082,3]
[402333146,1768659100191,-620.44,0.00018082,3]
[402333147,1768659100201,-599.93,0.00018082,3]
[402333148,1768659100211,-500.0,0.00018082,3]
[402333149,1768659100221,-500.0,0.00018082,3]
[402333150,1768659100231,-722.98,0.00018082,3]
[402333151,1768659100241,-500.0,0.00018082,3]
[402333152,1768659100251,-893.02,0.00018082,3]
[402333153,1768659100262,-945.42,0.00018082,3]
[402333154,1768659100272,-1045.03,0.00018082,3]
[402333155,1768659100281,-1046.6,0.00018082,3]
[402333156,1768659100291,-645.09,0.00018082,3]
[402333157,1768659100300,-379.25255787,0.00018082,3]
[402333158,1768659100311,-500.0,0.00018082,3]
[402333159,1768659100321,-598.18,0.00018082,3]
[402333160,1768659100330,-500.0,0.00018082,3]
[402333161,1768659100339,-8441.37,0.00018082,3]
[402333162,1768659100349,-500.0,0.00018082,3]
[402333163,1768659100359,-500.0,0.00018082,3]
[402333164,1768659100369,-980.47,0.00018082,3]
[402333165,1768659100378,-1662.71,0.00018082,3]
[402333166,1768659100388,-500.0,0.00018082,3]
[402333167,1768659100398,-500.0,0.00018082,3]
[402333168,1768659100408,-500.0,0.00018082,3]
[402333169,1768659100420,-583.28,0.00018082,3]
[402333170,1768659100431,-500.0,0.00018082,3]
[402333171,1768659100442,-500.0,0.00018082,3]
[402333172,1768659100452,-916.68,0.00018082,3]
[402333173,1768659100462,-500.0,0.00018082,3]
[402333174,1768659100472,-500.0,0.00018082,3]
[402333175,1768659100482,-1239.92,0.00018082,3]
[402333176,1768659100492,-500.0,0.00018082,3]
[402333177,1768659100502,-959.49,0.00018082,3]
[402333178,1768659100511,-1628.03,0.00018082,3]
[402333179,1768659100521,-1330.27,0.00018082,3]
[402333180,1768659100531,-645.96,0.00018082,3]
[402333181,1768659100541,-515.88315406,0.00018082,3]
[402333182,1768659100551,-500.0,0.00018082,3]
[402333183,1768659100560,-500.0,0.00018082,3]
[402333184,1768659100570,-500.0,0.00018082,3]
[402333185,1768659100580,-500.0,0.00018082,3]
[402333186,1768659100590,-1605.91,0.00018082,3]
[402333187,1768659100600,-2039.45,0.00018082,3]
[402333188,1768659100609,-500.0,0.00018082,3]
[402333189,1768659100620,-1033.72,0.00018082,3]
[402333190,1768659100630,-782.18,0.00018082,3]
[402333191,1768659100639,-500.0,0.00018082,3]
[402333192,1768659100649,-784.27,0.00018082,3]
[402333193,1768659100659,-500.0,0.00018082,3]
[402333194,1768659100668,-590.26232333,0.00018082,3]
[402333195,1768659100678,-1140.99,0.00018082,3]
[402333196,1768659100688,-564.98156914,0.00018082,3]
[402333197,1768659100698,-791.1,0.00018082,3]
[402333198,1768659100707,-500.0,0.00018082,3]
[402333199,1768659100717,-830.09,0.00018082,3]
[402333200,1768659100727,-500.0,0.00018082,3]
[402333201,1768659100737,-500.0,0.00018082,3]
[402333202,1768659100747,-3211.22,0.00018082,3]
[402333203,1768659100756,-795.5,0.00018082,3]
[402333204,1768659100766,-500.0,0.00018082,3]
[402333205,1768659100776,-500.0,0.00018082,3]
[402333206,1768659100786,-1112.08,0.00018082,3]
[402333207,1768659100796,-632.75,0.00018082,3]
[402333208,1768659100806,-500.0,0.00018082,3]
[402333209,1768659100816,-500.0,0.00018082,3]
[402333210,1768659100825,-500.0,0.00018082,3]
[402333211,1768659100836,-601.82,0.00018082,3]
[402333212,1768659100846,-598.94,0.00018082,3]
[402333213,1768659100856,-1550.67,0.00018082,3]
[402333214,1768659100869,-2433.28,0.00018082,3]
[402333215,1768659100879,-508.15,0.00018082,3]
[402333216,1768659100888,-500.0,0.00018082,3]
[402333217,1768659100898,-555.88,0.00018082,3]
[402333218,1768659100910,-500.0,0.00018082,3]
[402333219,1768659100920,-1739.47,0.00018082,3]
[402333220,1768659100934,-611.35197763,0.00018082,3]
[402333221,1768659100944,-1598.4,0.00018082,3]
[402333222,1768659100954,-1063.53,0.00018082,3]
[402333223,1768659100965,-500.0,0.00018082,3]
[402333224,1768659100976,-1469.78,0.00018082,3]
[402333225,1768659100986,-500.0,0.00018082,3]
[402333226,1768659100997,-500.0,0.00018082,3]
[402333227,1768659101007,-934.75,0.00018082,3]
[402333228,1768659101018,-915.24,0.00018082,3]
[402333229,1768659101036,-733.19,0.00018082,3]
[402333230,1768659101046,-816.16,0.00018082,3]
[402333231,1768659101056,-1878.43,0.00018082,3]
[402333232,1768659101066,-500.0,0.00018082,3]
[402333233,1768659101077,-1089.71,0.00018082,3]
[402333234,1768659101092,-500.0,0.00018082,3]
[402333235,1768659101108,-500.0,0.00018082,3]
[402333236,1768659101118,-750.97,0.00018082,3]
[402333237,1768659101128,-500.0,0.00018082,3]
[402333238,1768659101138,-500.0,0.00018082,3]
[402333239,1768659101148,-1374.51,0.00018082,3]
[402333240,1768659101158,-1031.25,0.00018082,3]
[402333241,1768659101168,-1506.77,0.00018082,3]
[402333242,1768659101178,-500.0,0.00018082,3]
[402333243,1768659101188,-654.05,0.00018082,3]
[402333244,1768659101198,-500.0,0.00018082,3]
[402333245,1768659101208,-1254.14,0.00018082,3]
[402333246,1768659101218,-885.27,0.00018082,3]
[402333247,1768659101228,-1550.94,0.00018082,3]
[402333248,1768659101238,-500.0,0.00018082,3]
[402333249,1768659101248,-561.1438134,0.00018082,3]
[402333250,1768659101258,-1929.23,0.00018082,3]
[402333251,1768659101274,-500.0,0.00018082,3]
[402333252,1768659101283,-871.62,0.00018082,3]
[402333253,1768659101293,-500.0,0.00018082,3]
[402333254,1768659101303,-500.0,0.00018082,3]
[402333255,1768659101314,-500.0,0.00018082,3]
[402333256,1768659101331,-1606.32,0.00018082,3]
[402333257,1768659101345,-548.96,0.00018082,3]
[402333258,1768659101355,-500.0,0.00018082,3]
[402333259,1768659101366,-500.0,0.00018082,3]
[402333260,1768659101376,-500.0,0.00018082,3]
[402333261,1768659101387,-747.4,0.00018082,3]
[402333262,1768659101396,-977.24,0.00018082,3]
[402333263,1768659101406,-500.0,0.00018082,3]
[402333264,1768659101416,-500.0,0.00018082,3]
[402333265,1768659101425,-500.0,0.00018082,2]
[402333266,1768659101435,-1149.89,0.00018082,3]
[402333267,1768659101446,-500.0,0.00018082,3]
[402333268,1768659101455,-500.0,0.00018082,3]
[402333269,1768659101465,-500.0,0.00018082,3]
[402333270,1768659101474,-500.0,0.00018082,3]
[402333271,1768659101485,-500.0,0.00018082,3]
[402333272,1768659101494,-500.0,0.00018082,2]
[402333273,1768659101504,-595.91030795,0.00018082,3]
[402333274,1768659101514,-500.0,0.00018082,3]
[402333275,1768659101523,-616.67576151,0.00018082,3]
[402333276,1768659101532,-574.13,0.00018082,3]
[402333277,1768659101542,-602.36,0.00018082,3]
[402333278,1768659101552,-500.0,0.00018082,2]
[402333279,1768659101562,-1409.0,0.00018096,2]
[402333280,1768659101571,-1409.0,0.00018154,2]
[402333281,1768659101581,-574.12855637,0.00018171,2]
[402333282,1768659101591,-2773.56790519,0.00018171,2]
[402333283,1768659101601,-1409.0,0.00018172,2]
[402333284,1768659101610,-1409.0,0.00018201,2]
[402333285,1768659101620,-1409.0,0.00018209,2]
[402333286,1768659101630,-800.0,0.00018228,2]
[402333287,1768659101639,-601.4293559,0.00018242,10]
[402333288,1768659101649,-387.17523187,0.00018248,2]
[402333289,1768659101660,-8077.22640448,0.00018248,2]
[402333290,1768659101669,-1409.0,0.00018256,2]
[402333291,1768659101678,-1409.0,0.00018258,2]
[402333292,1768659101688,-800.0,0.00018294,2]
[402333293,1768659101697,-1409.0,0.00018311,2]
[402333294,1768659101707,-228.267174,0.00018333,7]
[402333295,1768659101717,-203.28415453,0.00018333,2]
[402333296,1768659101727,-1409.0,0.00018341,2]
[402333297,1768659101737,-236.2,0.00018354,2]
[402333298,1768659101747,-151.0,0.00018356,3]
[402333299,1768659101757,-978.82,0.00018356,3]
[402333300,1768659101766,-500.0,0.00018356,3]
[402333301,1768659101776,-500.0,0.00018356,3]
[402333302,1768659101785,-1229.39,0.00018356,3]
[402333303,1768659101795,-500.0,0.00018356,3]
[402333304,1768659101804,-500.0,0.00018356,3]
[402333305,1768659101813,-556.53,0.00018356,3]
[402333306,1768659101823,-500.0,0.00018356,3]
[402333307,1768659101833,-500.0,0.00018356,3]
[402333308,1768659101843,-500.0,0.00018356,3]
[402333309,1768659101852,-672.56,0.00018356,3]
[402333310,1768659101864,-500.0,0.00018356,3]
[402333311,1768659101874,-792.58,0.00018356,3]
[402333312,1768659101884,-504.49,0.00018356,3]
[402333313,1768659101894,-673.73,0.00018356,3]
[402333314,1768659101905,-567.58,0.00018356,3]
[402333315,1768659101915,-1022.08,0.00018356,3]
[402333316,1768659101925,-500.0,0.00018356,3]
[402333317,1768659101936,-762.34,0.00018356,3]
[402333318,1768659101946,-950.57,0.00018356,3]
[402333319,1768659101956,-500.0,0.00018356,3]
[402333320,1768659101966,-500.0,0.00018356,3]
[402333321,1768659101976,-500.0,0.00018356,3]
[402333322,1768659101986,-1072.24,0.00018356,3]
[402333323,1768659101996,-224.14161596,0.00018356,3]
[402333324,1768659102006,-507.22,0.00018356,3]
[402333325,1768659102016,-500.0,0.00018356,3]
[402333326,1768659102026,-500.0,0.00018356,3]
[402333327,1768659102036,-836.71,0.00018356,3]
[402333328,1768659102046,-500.0,0.00018356,3]
[402333329,1768659102056,-500.0,0.00018356,3]
[402333330,1768659102066,-500.0,0.00018356,3]
[402333331,1768659102075,-1098.82,0.00018356,3]
[402333332,1768659102085,-500.0,0.00018356,3]
[402333333,1768659102095,-500.0,0.00018356,3]
[402333334,1768659102105,-500.0,0.00018356,3]
[402333335,1768659102114,-500.0,0.00018356,3]
[402333336,1768659102124,-1864.45,0.00018356,3]
[402333337,1768659102135,-500.0,0.00018356,3]
[402333338,1768659102144,-772.16,0.00018356,3]
[402333339,1768659102154,-523.8,0.00018356,3]
[402333340,1768659102164,-500.0,0.00018356,3]
[402333341,1768659102174,-500.0,0.00018356,3]
[402333342,1768659102183,-785.13,0.00018356,3]
[402333343,1768659102193,-1777.27,0.00018356,3]
[402333344,1768659102203,-875.55,0.00018356,3]
[402333345,1768659102215,-500.0,0.00018356,3]
[402333346,1768659102224,-964.42,0.00018356,3]
[402333347,1768659102235,-564.35,0.00018356,3]
[402333348,1768659102245,-612.1,0.00018356,3]
[402333349,1768659102255,-500.0,0.00018356,3]
[402333350,1768659102264,-643.39,0.00018356,3]
[402333351,1768659102274,-976.59,0.00018356,3]
[402333352,1768659102284,-974.97,0.00018356,3]
[402333353,1768659102294,-1699.56,0.00018356,3]
[402333354,1768659102304,-500.0,0.00018356,3]
[402333355,1768659102314,-500.0,0.00018356,3]
[402333356,1768659102324,-500.0,0.00018356,3]
[402333357,1768659102334,-999.91,0.00018356,3]
[402333358,1768659102345,-500.0,0.00018356,3]
[402333359,1768659102355,-500.0,0.00018356,3]
[402333360,1768659102364,-530.71,0.00018356,3]
[402333361,1768659102374,-500.0,0.00018356,3]
[402333362,1768659102384,-1003.52,0.00018356,3]
[402333363,1768659102393,-741.6,0.00018356,3]
[402333364,1768659102404,-500.0,0.00018356,3]
[402333365,1768659102414,-306.16209203,0.00018356,3]
[402333366,1768659102425,-565.41,0.00018356,3]
[402333367,1768659102436,-979.46,0.00018356,3]
[402333368,1768659102446,-895.32,0.00018356,3]
[402333369,1768659102456,-904.31,0.00018356,3]
[402333370,1768659102465,-903.29,0.00018356,3]
[402333371,1768659102475,-500.0,0.00018356,3]
[402333372,1768659102486,-205.70334836,0.00018356,3]
[402333373,1768659102496,-500.0,0.00018356,3]
[402333374,1768659102506,-500.0,0.00018356,3]
[402333375,1768659102516,-500.0,0.00018356,3]
[402333376,1768659102526,-692.98,0.00018356,3]
[402333377,1768659102535,-1000.0,0.00018356,2]
[402333378,1768659102545,-500.0,0.00018356,3]
[402333379,1768659102555,-500.0,0.00018356,3]
[402333380,1768659102565,-500.0,0.00018356,3]
[402333381,1768659102575,-1541.12,0.00018356,3]
[402333382,1768659102587,-1586.94,0.00018356,3]
[402333383,1768659102597,-500.0,0.00018356,3]
[402333384,1768659102607,-500.0,0.00018356,3]
[402333385,1768659102812,-500.0,0.00018356,3]
[402333386,1768659102828,-500.0,0.00018356,3]
[402333387,1768659102838,-557.26,0.00018356,3]
[402333388,1768659102847,-1200.0,0.00018356,2]
[402333389,1768659102857,-500.0,0.00018356,3]
[402333390,1768659102870,-960.56,0.00018356,3]
[402333391,1768659102880,-500.0,0.00018356,3]
[402333392,1768659102889,-1187.76,0.00018356,3]
[402333393,1768659102898,-159.21,0.00018356,3]
[402333394,1768659102908,-524.86,0.00018356,3]
[402333395,1768659102919,-500.0,0.00018356,3]
[402333396,1768659102928,-2078.62,0.00018356,3]
[402333397,1768659102938,-500.0,0.00018356,3]
[402333398,1768659102947,-500.0,0.00018356,3]
[402333399,1768659102956,-500.0,0.00018356,3]
[402333400,1768659102964,-510.56,0.00018356,3]
[402333401,1768659102973,-500.0,0.00018356,3]
[402333402,1768659102982,-500.0,0.00018356,3]
[402333403,1768659102991,-504.11,0.00018356,3]
[402333404,1768659103000,-500.0,0.00018356,3]
[402333405,1768659103009,-500.0,0.00018356,3]
[402333406,1768659103018,-500.0,0.00018356,3]
[402333407,1768659103027,-500.0,0.00018356,3]
[402333408,1768659103036,-500.0,0.00018356,3]
[402333409,1768659103045,-1289.75,0.00018356,3]
[402333410,1768659103054,-759.35,0.00018356,3]
[402333411,1768659103063,-597.8010965,0.00018356,3]
[402333412,1768659103071,-500.0,0.00018356,3]
[402333413,1768659103081,-500.0,0.00018356,3]
[402333414,1768659103090,-310.90446794,0.00018356,3]
[402333415,1768659103099,-566.37,0.00018356,3]
[402333416,1768659103108,-985.63,0.00018356,3]
[402333417,1768659103118,-1802.89,0.00018356,3]
[402333418,1768659103127,-500.0,0.00018356,3]
[402333419,1768659103136,-924.88,0.00018356,3]
[402333420,1768659103145,-500.0,0.00018356,3]
[402333421,1768659103154,-500.0,0.00018356,3]
[402333422,1768659103164,-875.06,0.00018356,3]
[402333423,1768659103174,-788.81,0.00018356,3]
[402333424,1768659103184,-500.0,0.00018356,3]
[402333425,1768659103193,-523.17,0.00018356,3]